[Event "FIDE World Rapid Chess Championship 2021"]
[White "Mikhalevski, Victor"]
[Black "Nevednichy, Vladislav"]
[WhiteFideId "2801914"]
[BlackFideId "1205730"]
[WhiteElo "2366"]
[BlackElo "2425"]
[Result "1-0"]
[Round "04"]
[TimeControl "900+10"]
[Date "2021.12.26"]
[WhiteClock "0:03:49"]
[BlackClock "0:00:18"]

1. d4 {[%clk 0:15:19]}  Nf6 {[%clk 0:15:00]} 2. Nf3 {[%clk 0:15:19]}  e6 {[%clk 0:15:00]} 3. c4 {[%clk 0:15:19]}  d5 {[%clk 0:15:00]} 4. g3 {[%clk 0:15:19]}  Bb4+ {[%clk 0:15:00]} 5. Bd2 {[%clk 0:15:19]}  Be7 {[%clk 0:15:00]} 6. Bg2 {[%clk 0:15:19]}  O-O {[%clk 0:15:00]} 7. O-O {[%clk 0:15:19]}  c6 {[%clk 0:15:00]} 8. b3 {[%clk 0:15:19]}  Ne4 {[%clk 0:15:00]} 9. Bf4 {[%clk 0:15:19]}  a5 {[%clk 0:15:00]} 10. Qc2 {[%clk 0:15:56]}  Nd7 {[%clk 0:14:45]} 11. Nc3 {[%clk 0:15:56]}  f5 {[%clk 0:14:45]} 12. Rad1 {[%clk 0:15:56]}  Bb4 {[%clk 0:14:45]} 13. Nb1 {[%clk 0:14:40]}  a4 {[%clk 0:13:50]} 14. Ne1 {[%clk 0:14:40]}  axb3 {[%clk 0:13:50]} 15. axb3 {[%clk 0:14:40]}  Ndf6 {[%clk 0:13:44]} 16. f3 {[%clk 0:14:51]}  Nd6 {[%clk 0:13:44]} 17. Nd3 {[%clk 0:14:51]}  Ba5 {[%clk 0:13:44]} 18. Nd2 {[%clk 0:14:52]}  Bc7 {[%clk 0:10:50]} 19. Ra1 {[%clk 0:14:52]}  Rxa1 {[%clk 0:10:20]} 20. Rxa1 {[%clk 0:11:54]}  Nf7 {[%clk 0:09:52]} 21. Bxc7 {[%clk 0:09:53]}  Qxc7 {[%clk 0:09:14]} 22. f4 {[%clk 0:09:53]}  Bd7 {[%clk 0:09:14]} 23. Nf3 {[%clk 0:09:53]}  Rd8 {[%clk 0:09:14]} 24. Qc3 {[%clk 0:09:43]}  Qb6 {[%clk 0:08:14]} 25. c5 {[%clk 0:09:43]}  Qc7 {[%clk 0:08:14]} 26. Qa5 {[%clk 0:09:43]}  Qxa5 {[%clk 0:08:14]} 27. Rxa5 {[%clk 0:09:43]}  Rb8 {[%clk 0:08:01]} 28. Ra7 {[%clk 0:07:34]}  Ne8 {[%clk 0:08:01]} 29. Nde5 {[%clk 0:07:41]}  Nf6 {[%clk 0:08:01]} 30. b4 {[%clk 0:07:19]}  Be8 {[%clk 0:06:11]} 31. Nd3 {[%clk 0:07:19]}  Ne4 {[%clk 0:06:11]} 32. e3 {[%clk 0:07:19]}  Nc3 {[%clk 0:06:11]} 33. Kf2 {[%clk 0:05:24]}  Nb5 {[%clk 0:06:11]} 34. Ra5 {[%clk 0:05:03]}  Nc7 {[%clk 0:06:16]} 35. Bf1 {[%clk 0:05:03]}  Ra8 {[%clk 0:06:16]} 36. Rxa8 {[%clk 0:05:03]}  Nxa8 {[%clk 0:06:16]} 37. Nc1 {[%clk 0:05:03]}  b5 {[%clk 0:06:16]} 38. cxb6 {[%clk 0:05:03]}  Nxb6 {[%clk 0:05:21]} 39. Nb3 {[%clk 0:05:11]}  Nd8 {[%clk 0:05:21]} 40. Nc5 {[%clk 0:05:11]}  h6 {[%clk 0:05:15]} 41. Ne5 {[%clk 0:05:11]}  Kf8 {[%clk 0:05:15]} 42. h3 {[%clk 0:05:11]}  Ke7 {[%clk 0:05:15]} 43. g4 {[%clk 0:05:11]}  g5 {[%clk 0:03:07]} 44. Bd3 {[%clk 0:05:21]}  Kf6 {[%clk 0:03:07]} 45. Kg3 {[%clk 0:05:21]}  Nc8 {[%clk 0:03:07]} 46. h4 {[%clk 0:05:21]}  gxh4+ {[%clk 0:03:07]} 47. Kxh4 {[%clk 0:04:59]}  fxg4 {[%clk 0:02:22]} 48. Nxg4+ {[%clk 0:04:43]}  Kg7 {[%clk 0:02:31]} 49. e4 {[%clk 0:04:43]}  dxe4 {[%clk 0:02:31]} 50. Nxe4 {[%clk 0:04:43]}  Ne7 {[%clk 0:02:31]} 51. Nd6 {[%clk 0:04:43]}  Bg6 {[%clk 0:02:31]} 52. Bc4 {[%clk 0:04:43]}  Bf5 {[%clk 0:02:21]} 53. Ne5 {[%clk 0:03:52]}  Ng6+ {[%clk 0:02:21]} 54. Kg3 {[%clk 0:03:52]}  Nxe5 {[%clk 0:02:21]} 55. dxe5 {[%clk 0:03:52]}  Bg6 {[%clk 0:02:21]} 56. Kh4 {[%clk 0:03:20]}  Bc2 {[%clk 0:01:10]} 57. Be2 {[%clk 0:03:07]}  Bg6 {[%clk 0:01:09]} 58. Bg4 {[%clk 0:02:55]}  Bd3 {[%clk 0:00:51]} 59. Bh5 {[%clk 0:02:55]}  Bc2 {[%clk 0:00:51]} 60. Kg3 {[%clk 0:02:55]}  Bd3 {[%clk 0:00:51]} 61. Kf3 {[%clk 0:02:55]}  Bc2 {[%clk 0:00:51]} 62. Ke3 {[%clk 0:02:55]}  Bg6 {[%clk 0:00:51]} 63. Bg4 {[%clk 0:02:55]}  h5 {[%clk 0:00:51]} 64. Bh3 {[%clk 0:02:55]}  Bc2 {[%clk 0:00:38]} 65. Kf3 {[%clk 0:03:00]}  Bb3 {[%clk 0:00:38]} 66. Kg3 {[%clk 0:03:00]}  Bd1 {[%clk 0:00:38]} 67. Kh4 {[%clk 0:03:00]}  Kg6 {[%clk 0:00:38]} 68. Bf1 {[%clk 0:03:00]}  Kh6 {[%clk 0:00:38]} 69. Bd3 {[%clk 0:03:00]}  Bf3 {[%clk 0:00:38]} 70. f5 {[%clk 0:03:00]}  Kg7 {[%clk 0:00:38]} 71. f6+ {[%clk 0:03:00]}  Kf8 {[%clk 0:00:38]} 72. Bg6 {[%clk 0:03:00]}  c5 {[%clk 0:00:38]} 73. b5 {[%clk 0:03:00]}  Be2 {[%clk 0:00:38]} 74. Bxh5 {[%clk 0:03:00]}  Bd3 {[%clk 0:00:47]} 75. b6 {[%clk 0:03:38]}  c4 {[%clk 0:00:47]} 76. b7 {[%clk 0:03:38]}  Nc6 {[%clk 0:00:47]} 77. Bf3 {[%clk 0:03:42]}  Nb8 {[%clk 0:01:00]} 78. Nb5 {[%clk 0:03:42]}  Nd7 {[%clk 0:01:00]} 79. Kg5 {[%clk 0:03:42]}  Nb8 {[%clk 0:01:00]} 80. Kf4 {[%clk 0:03:42]}  Ke8 {[%clk 0:01:00]} 81. Ke3 {[%clk 0:03:42]}  Kd7 {[%clk 0:01:00]} 82. Kd4 {[%clk 0:03:42]}  Bf1 {[%clk 0:01:00]} 83. Nd6 {[%clk 0:03:42]}  Kc7 {[%clk 0:01:00]} 84. Nxc4 {[%clk 0:03:42]}  Nd7 {[%clk 0:00:26]} 85. Nd6 {[%clk 0:03:49]}  Ba6 {[%clk 0:00:18]} 86. Ne8+ {[%clk 0:03:49]}  Kb8 {[%clk 0:00:18]} 87. Ng7 {[%clk 0:03:49]}  Nf8 {[%clk 0:00:18]} 88. Kc5 {[%clk 0:03:49]}  Bxb7 {[%clk 0:00:18]} 89. Bxb7 {[%clk 0:03:49]}  Kxb7 {[%clk 0:00:18]} 90. Kd6 {[%clk 0:03:49]} 1-0


[Site "http://www.Chess.com"]

[Event "FIDE World Rapid Chess Championship 2021"]
[White "Baum, Jonasz"]
[Black "Kadric, Denis"]
[WhiteFideId "1195360"]
[BlackFideId "14403803"]
[WhiteElo "2343"]
[BlackElo "2542"]
[Result "1-0"]
[Round "04"]
[TimeControl "900+10"]
[Date "2021.12.26"]
[WhiteClock "0:02:07"]
[BlackClock "0:01:43"]

1. d4 {[%clk 0:15:27]}  d6 {[%clk 0:15:21]} 2. Nf3 {[%clk 0:15:27]}  Nf6 {[%clk 0:15:21]} 3. c4 {[%clk 0:15:27]}  Nbd7 {[%clk 0:15:21]} 4. Nc3 {[%clk 0:15:27]}  e5 {[%clk 0:15:21]} 5. Bg5 {[%clk 0:15:27]}  h6 {[%clk 0:15:21]} 6. Bh4 {[%clk 0:15:27]}  g5 {[%clk 0:15:21]} 7. Bg3 {[%clk 0:15:27]}  Nh5 {[%clk 0:15:21]} 8. e3 {[%clk 0:15:27]}  Bg7 {[%clk 0:15:21]} 9. dxe5 {[%clk 0:15:27]}  Nxg3 {[%clk 0:15:33]} 10. hxg3 {[%clk 0:15:03]}  dxe5 {[%clk 0:15:33]} 11. Qc2 {[%clk 0:15:03]}  O-O {[%clk 0:15:33]} 12. O-O-O {[%clk 0:15:03]}  f5 {[%clk 0:15:14]} 13. g4 {[%clk 0:13:36]}  fxg4 {[%clk 0:10:10]} 14. Nh2 {[%clk 0:10:09]}  g3 {[%clk 0:07:06]} 15. Ng4 {[%clk 0:07:04]}  Rxf2 {[%clk 0:07:06]} 16. Nxf2 {[%clk 0:06:29]}  gxf2 {[%clk 0:02:53]} 17. Qxf2 {[%clk 0:06:29]}  c6 {[%clk 0:03:08]} 18. c5 {[%clk 0:02:55]}  Qe7 {[%clk 0:03:08]} 19. Bc4+ {[%clk 0:02:55]}  Kh8 {[%clk 0:03:08]} 20. Ne4 {[%clk 0:02:55]}  b5 {[%clk 0:02:08]} 21. Qf7 {[%clk 0:02:07]}  Qxf7 {[%clk 0:01:43]} 22. Bxf7 {[%clk 0:02:07]}  Bf8 {[%clk 0:01:43]} 23. Be6 {[%clk 0:02:07]}  Nxc5 {[%clk 0:01:43]} 24. Nxc5 {[%clk 0:02:07]}  Bxc5 {[%clk 0:01:43]} 25. Rd8+ {[%clk 0:02:07]} 1-0


[Site "http://www.Chess.com"]

[Event "FIDE World Rapid Chess Championship 2021"]
[White "Carlsson, Pontus"]
[Black "Cuenca Jimenez, Jose Fernando"]
[WhiteFideId "1705814"]
[BlackFideId "2255570"]
[WhiteElo "2436"]
[BlackElo "2421"]
[Result "0-1"]
[Round "04"]
[TimeControl "900+10"]
[Date "2021.12.26"]
[WhiteClock "0:00:16"]
[BlackClock "0:00:03"]

1. e4 {[%clk 0:15:35]}  e5 {[%clk 0:15:25]} 2. Nf3 {[%clk 0:15:35]}  Nc6 {[%clk 0:15:25]} 3. d4 {[%clk 0:15:35]}  exd4 {[%clk 0:15:25]} 4. Nxd4 {[%clk 0:15:35]}  Nf6 {[%clk 0:15:25]} 5. Nc3 {[%clk 0:15:35]}  Bb4 {[%clk 0:15:25]} 6. Nxc6 {[%clk 0:15:35]}  bxc6 {[%clk 0:15:25]} 7. Bd3 {[%clk 0:15:35]}  d6 {[%clk 0:15:25]} 8. O-O {[%clk 0:16:08]}  Ng4 {[%clk 0:13:53]} 9. Na4 {[%clk 0:14:39]}  Qh4 {[%clk 0:14:02]} 10. Bf4 {[%clk 0:12:53]}  Qf6 {[%clk 0:12:11]} 11. Qc1 {[%clk 0:12:21]}  h6 {[%clk 0:12:11]} 12. a3 {[%clk 0:11:52]}  g5 {[%clk 0:10:17]} 13. Bg3 {[%clk 0:11:52]}  Ba5 {[%clk 0:09:16]} 14. b4 {[%clk 0:11:58]}  Bb6 {[%clk 0:09:16]} 15. Nxb6 {[%clk 0:11:58]}  axb6 {[%clk 0:09:16]} 16. Be2 {[%clk 0:12:02]}  Ne5 {[%clk 0:06:54]} 17. f4 {[%clk 0:08:26]}  gxf4 {[%clk 0:06:54]} 18. Bxf4 {[%clk 0:08:26]}  Qg7 {[%clk 0:05:49]} 19. Qe3 {[%clk 0:07:45]}  Be6 {[%clk 0:03:30]} 20. a4 {[%clk 0:06:10]}  Ng6 {[%clk 0:02:00]} 21. Bg3 {[%clk 0:05:52]}  h5 {[%clk 0:01:25]} 22. Rfb1 {[%clk 0:05:51]}  h4 {[%clk 0:01:25]} 23. Be1 {[%clk 0:05:51]}  Ne5 {[%clk 0:01:34]} 24. Bc3 {[%clk 0:03:24]}  Rg8 {[%clk 0:01:34]} 25. Bf1 {[%clk 0:03:24]}  Qg5 {[%clk 0:01:34]} 26. Re1 {[%clk 0:02:02]}  Kd7 {[%clk 0:01:01]} 27. a5 {[%clk 0:02:02]}  b5 {[%clk 0:01:01]} 28. Qf2 {[%clk 0:02:02]}  Ng4 {[%clk 0:01:01]} 29. Qd2 {[%clk 0:02:02]}  Ne5 {[%clk 0:01:01]} 30. Qf2 {[%clk 0:02:02]}  h3 {[%clk 0:01:08]} 31. g3 {[%clk 0:00:40]}  Ng4 {[%clk 0:01:08]} 32. Qd2 {[%clk 0:00:40]}  Nxh2 {[%clk 0:01:08]} 33. Qxh2 {[%clk 0:00:40]}  Qxg3+ {[%clk 0:01:08]} 34. Qxg3 {[%clk 0:00:40]}  Rxg3+ {[%clk 0:01:08]} 35. Kf2 {[%clk 0:00:40]}  Rxc3 {[%clk 0:01:08]} 36. Bd3 {[%clk 0:00:40]}  Bc4 {[%clk 0:01:08]} 37. Ke3 {[%clk 0:00:40]}  Bxd3 {[%clk 0:01:08]} 38. cxd3 {[%clk 0:00:40]}  Rb3 {[%clk 0:00:27]} 39. Rh1 {[%clk 0:00:21]}  Rxb4 {[%clk 0:00:27]} 40. Rxh3 {[%clk 0:00:21]}  Ra4 {[%clk 0:00:27]} 41. Rf1 {[%clk 0:00:21]}  Rf8 {[%clk 0:00:27]} 42. Rh7 {[%clk 0:00:21]}  Ke7 {[%clk 0:00:27]} 43. d4 {[%clk 0:00:21]}  Rxa5 {[%clk 0:00:27]} 44. Rc1 {[%clk 0:00:21]}  Ra3+ {[%clk 0:00:27]} 45. Kf4 {[%clk 0:00:21]}  Ra6 {[%clk 0:00:27]} 46. d5 {[%clk 0:00:21]}  c5 {[%clk 0:00:27]} 47. e5 {[%clk 0:00:21]}  dxe5+ {[%clk 0:00:41]} 48. Kxe5 {[%clk 0:00:50]}  c4 {[%clk 0:00:41]} 49. Rb1 {[%clk 0:00:14]}  Rb6 {[%clk 0:00:08]} 50. Kd4 {[%clk 0:00:14]}  Kd7 {[%clk 0:00:08]} 51. Rf1 {[%clk 0:00:14]}  Kc8 {[%clk 0:00:08]} 52. Rfxf7 {[%clk 0:00:14]}  Rxf7 {[%clk 0:00:08]} 53. Rxf7 {[%clk 0:00:14]}  Kb7 {[%clk 0:00:08]} 54. Rf1 {[%clk 0:00:14]}  Rh6 {[%clk 0:00:03]} 55. Kc5 {[%clk 0:00:16]}  Rb6 {[%clk 0:00:03]} 56. Rc1 {[%clk 0:00:16]}  Kc8 {[%clk 0:00:03]} 57. Rc2 {[%clk 0:00:16]}  Kd7 {[%clk 0:00:03]} 58. Rc1 {[%clk 0:00:16]}  b4 {[%clk 0:00:03]} 59. Kxc4 {[%clk 0:00:16]}  b3 {[%clk 0:00:03]} 60. Kc3 {[%clk 0:00:16]} 0-1


[Site "http://www.Chess.com"]

[Event "FIDE World Rapid Chess Championship 2021"]
[White "Duda, Jan-Krzysztof"]
[Black "Jobava, Baadur"]
[WhiteFideId "1170546"]
[BlackFideId "13601520"]
[WhiteElo "2801"]
[BlackElo "2679"]
[Result "1/2-1/2"]
[Round "05"]
[TimeControl "900+10"]
[Date "2021.12.26"]
[WhiteClock "0:00:13"]
[BlackClock "0:00:52"]

1. d4 {[%clk 0:00:25]}  d5 {[%clk 0:00:33]} 2. c4 {[%clk 0:00:25]}  dxc4 {[%clk 0:00:33]} 3. Nf3 {[%clk 0:00:25]}  Nf6 {[%clk 0:00:33]} 4. e3 {[%clk 0:00:25]}  Bg4 {[%clk 0:00:33]} 5. Bxc4 {[%clk 0:00:25]}  e6 {[%clk 0:00:33]} 6. h3 {[%clk 0:00:25]}  Bh5 {[%clk 0:00:33]} 7. Nc3 {[%clk 0:00:25]}  Nc6 {[%clk 0:00:33]} 8. a3 {[%clk 0:00:25]}  a6 {[%clk 0:00:33]} 9. g4 {[%clk 0:00:25]}  Bg6 {[%clk 0:00:33]} 10. Nh4 {[%clk 0:00:25]}  Bd6 {[%clk 0:00:33]} 11. Nxg6 {[%clk 0:00:25]}  hxg6 {[%clk 0:00:33]} 12. Bd2 {[%clk 0:00:25]}  e5 {[%clk 0:00:33]} 13. d5 {[%clk 0:00:25]}  Ne7 {[%clk 0:00:33]} 14. g5 {[%clk 0:00:25]}  Nd7 {[%clk 0:00:33]} 15. Qg4 {[%clk 0:00:25]}  Nf5 {[%clk 0:00:33]} 16. h4 {[%clk 0:00:25]}  Be7 {[%clk 0:00:33]} 17. O-O-O {[%clk 0:00:25]}  Nd6 {[%clk 0:00:33]} 18. Be2 {[%clk 0:00:25]}  Nc5 {[%clk 0:00:33]} 19. Qg2 {[%clk 0:00:25]}  b5 {[%clk 0:00:33]} 20. Kc2 {[%clk 0:00:25]}  Rb8 {[%clk 0:00:33]} 21. Na2 {[%clk 0:00:25]}  Qd7 {[%clk 0:00:33]} 22. Bg4 {[%clk 0:00:25]}  Nf5 {[%clk 0:00:33]} 23. Nb4 {[%clk 0:00:25]}  Rb6 {[%clk 0:00:33]} 24. Bc3 {[%clk 0:00:25]}  a5 {[%clk 0:00:33]} 25. Nc6 {[%clk 0:00:25]}  b4 {[%clk 0:00:33]} 26. Bxe5 {[%clk 0:00:25]}  bxa3 {[%clk 0:00:33]} 27. bxa3 {[%clk 0:00:25]}  O-O {[%clk 0:00:33]} 28. h5 {[%clk 0:00:25]}  Rxc6 {[%clk 0:00:33]} 29. dxc6 {[%clk 0:00:25]}  Qe6 {[%clk 0:00:33]} 30. Qd5 {[%clk 0:00:25]}  Nxe3+ {[%clk 0:00:33]} 31. fxe3 {[%clk 0:00:25]}  Qxg4 {[%clk 0:00:33]} 32. hxg6 {[%clk 0:00:25]}  Qf5+ {[%clk 0:00:33]} 33. e4 {[%clk 0:00:25]}  Qxg6 {[%clk 0:00:33]} 34. Bf6 {[%clk 0:00:25]}  Bd6 {[%clk 0:00:33]} 35. Bd4 {[%clk 0:00:25]}  Nxe4 {[%clk 0:00:33]} 36. Rd3 {[%clk 0:00:25]}  Re8 {[%clk 0:00:33]} 37. Kb3 {[%clk 0:00:25]}  Nxg5 {[%clk 0:00:33]} 38. Bc3 {[%clk 0:00:25]}  Rb8+ {[%clk 0:00:33]} 39. Ka2 {[%clk 0:00:25]}  Ne4 {[%clk 0:00:33]} 40. Ka1 {[%clk 0:00:25]}  Nxc3 {[%clk 0:00:33]} 41. Rxc3 {[%clk 0:00:25]}  Qf6 {[%clk 0:00:33]} 42. Qd3 {[%clk 0:00:25]}  Rb3 {[%clk 0:00:33]} 43. Qh7+ {[%clk 0:00:25]}  Kf8 {[%clk 0:00:33]} 44. Qh8+ {[%clk 0:00:25]}  Ke7 {[%clk 0:00:33]} 45. Re1+ {[%clk 0:00:25]}  Be5 {[%clk 0:00:33]} 46. Qc8 {[%clk 0:00:25]}  Qe6 {[%clk 0:00:33]} 47. Qxc7+ {[%clk 0:00:25]}  Bxc7 {[%clk 0:00:33]} 48. Rxe6+ {[%clk 0:00:25]}  Kxe6 {[%clk 0:00:33]} 49. Rxb3 {[%clk 0:00:25]}  Kd5 {[%clk 0:00:33]} 50. Rc3 {[%clk 0:00:25]}  f5 {[%clk 0:00:33]} 51. Kb1 {[%clk 0:00:25]}  g5 {[%clk 0:00:33]} 52. Kc2 {[%clk 0:00:25]}  g4 {[%clk 0:00:33]} 53. Kd3 {[%clk 0:00:25]}  f4 {[%clk 0:00:33]} 54. a4 {[%clk 0:00:25]}  f3 {[%clk 0:00:33]} 55. Ke3 {[%clk 0:00:25]}  Ke5 {[%clk 0:00:33]} 56. Rc5+ {[%clk 0:00:25]}  Kd6 {[%clk 0:00:33]} 57. Rc4 {[%clk 0:00:25]}  Bb6+ {[%clk 0:00:33]} 58. Kf4 {[%clk 0:00:25]}  f2 {[%clk 0:00:24]} 59. Rc1 {[%clk 0:00:20]}  Kc7 {[%clk 0:00:24]} 60. Kxg4 {[%clk 0:00:20]}  Be3 {[%clk 0:00:24]} 61. Rh1 {[%clk 0:00:20]}  Kxc6 {[%clk 0:00:24]} 62. Kf3 {[%clk 0:00:20]}  Bc5 {[%clk 0:00:24]} 63. Ke4 {[%clk 0:00:20]}  Bb4 {[%clk 0:00:24]} 64. Kd4 {[%clk 0:00:20]}  Be1 {[%clk 0:00:24]} 65. Rh6+ {[%clk 0:00:20]}  Kd7 {[%clk 0:00:24]} 66. Rf6 {[%clk 0:00:20]}  Ke7 {[%clk 0:00:24]} 67. Rf5 {[%clk 0:00:20]}  Ke6 {[%clk 0:00:24]} 68. Rf3 {[%clk 0:00:13]}  Kd6 {[%clk 0:00:52]} 69. Rf6+ {[%clk 0:00:13]}  Ke7 {[%clk 0:00:52]} 70. Rf3 {[%clk 0:00:13]} 1/2-1/2


[Site "http://www.Chess.com"]

[Event "FIDE World Rapid Chess Championship 2021"]
[White "Giri, Anish"]
[Black "Gelfand, Boris"]
[WhiteFideId "24116068"]
[BlackFideId "2805677"]
[WhiteElo "2767"]
[BlackElo "2648"]
[Result "1/2-1/2"]
[Round "05"]
[TimeControl "900+10"]
[Date "2021.12.26"]
[WhiteClock "0:10:14"]
[BlackClock "0:09:56"]

1. d4 {[%clk 0:10:14]}  Nf6 {[%clk 0:09:56]} 2. Nf3 {[%clk 0:10:14]}  d5 {[%clk 0:09:56]} 3. Bf4 {[%clk 0:10:14]}  c5 {[%clk 0:09:56]} 4. e3 {[%clk 0:10:14]}  Nc6 {[%clk 0:09:56]} 5. Nbd2 {[%clk 0:10:14]}  Bg4 {[%clk 0:09:56]} 6. c3 {[%clk 0:10:14]}  e6 {[%clk 0:09:56]} 7. Qb3 {[%clk 0:10:14]}  Qc8 {[%clk 0:09:56]} 8. h3 {[%clk 0:10:14]}  Bh5 {[%clk 0:09:56]} 9. Be2 {[%clk 0:10:14]}  Be7 {[%clk 0:09:56]} 10. O-O {[%clk 0:10:14]}  O-O {[%clk 0:09:56]} 11. Rfe1 {[%clk 0:10:14]}  Rd8 {[%clk 0:09:56]} 12. Qd1 {[%clk 0:10:14]}  a6 {[%clk 0:09:56]} 13. a4 {[%clk 0:10:14]}  h6 {[%clk 0:09:56]} 14. dxc5 {[%clk 0:10:14]}  Bxc5 {[%clk 0:09:56]} 15. b4 {[%clk 0:10:14]}  Be7 {[%clk 0:09:56]} 16. Rc1 {[%clk 0:10:14]}  Ne4 {[%clk 0:09:56]} 17. Nxe4 {[%clk 0:10:14]}  Bxf3 {[%clk 0:09:56]} 18. Nd2 {[%clk 0:10:14]}  Bxe2 {[%clk 0:09:56]} 19. Qxe2 {[%clk 0:10:14]}  e5 {[%clk 0:09:56]} 20. Bg3 {[%clk 0:10:14]}  Qe6 {[%clk 0:09:56]} 21. b5 {[%clk 0:10:14]}  axb5 {[%clk 0:09:56]} 22. axb5 {[%clk 0:10:14]} 1/2-1/2


[Site "http://www.Chess.com"]

[Event "FIDE World Rapid Chess Championship 2021"]
[White "Gareyev, Timur"]
[Black "Caruana, Fabiano"]
[WhiteFideId "14200937"]
[BlackFideId "2020009"]
[WhiteElo "2578"]
[BlackElo "2770"]
[Result "1/2-1/2"]
[Round "05"]
[TimeControl "900+10"]
[Date "2021.12.26"]
[WhiteClock "0:01:14"]
[BlackClock "0:00:40"]

1. d4 {[%clk 0:01:14]}  Nf6 {[%clk 0:00:40]} 2. c4 {[%clk 0:01:14]}  e6 {[%clk 0:00:40]} 3. Nc3 {[%clk 0:01:14]}  Bb4 {[%clk 0:00:40]} 4. Qc2 {[%clk 0:01:14]}  O-O {[%clk 0:00:40]} 5. a3 {[%clk 0:01:14]}  Bxc3+ {[%clk 0:00:40]} 6. Qxc3 {[%clk 0:01:14]}  d6 {[%clk 0:00:40]} 7. Nf3 {[%clk 0:01:14]}  Re8 {[%clk 0:00:40]} 8. Bg5 {[%clk 0:01:14]}  h6 {[%clk 0:00:40]} 9. Bh4 {[%clk 0:01:14]}  g5 {[%clk 0:00:40]} 10. Bg3 {[%clk 0:01:14]}  e5 {[%clk 0:00:40]} 11. O-O-O {[%clk 0:01:14]}  Ne4 {[%clk 0:00:40]} 12. Qe1 {[%clk 0:01:14]}  f5 {[%clk 0:00:40]} 13. dxe5 {[%clk 0:01:14]}  f4 {[%clk 0:00:40]} 14. e3 {[%clk 0:01:14]}  fxg3 {[%clk 0:00:40]} 15. hxg3 {[%clk 0:01:14]}  Qe7 {[%clk 0:00:40]} 16. Bd3 {[%clk 0:01:14]}  Bf5 {[%clk 0:00:40]} 17. Rxh6 {[%clk 0:01:14]}  Qg7 {[%clk 0:00:40]} 18. Nd4 {[%clk 0:01:14]}  Bg4 {[%clk 0:00:40]} 19. Rh2 {[%clk 0:01:14]}  dxe5 {[%clk 0:00:40]} 20. Bxe4 {[%clk 0:01:14]}  exd4 {[%clk 0:00:40]} 21. Rxd4 {[%clk 0:01:14]}  Nc6 {[%clk 0:00:40]} 22. Bxc6 {[%clk 0:01:14]}  Qxd4 {[%clk 0:00:40]} 23. Bd5+ {[%clk 0:01:14]}  Kf8 {[%clk 0:00:40]} 24. Rh7 {[%clk 0:01:14]}  Qf6 {[%clk 0:00:40]} 25. Qb4+ {[%clk 0:01:14]}  Re7 {[%clk 0:00:40]} 26. Rf7+ {[%clk 0:01:14]}  Qxf7 {[%clk 0:00:40]} 27. Bxf7 {[%clk 0:01:14]}  Kxf7 {[%clk 0:00:40]} 28. f3 {[%clk 0:01:14]}  Be6 {[%clk 0:00:40]} 29. Qxb7 {[%clk 0:01:14]}  Rd8 {[%clk 0:00:40]} 30. Qxa7 {[%clk 0:01:14]}  Bxc4 {[%clk 0:00:40]} 31. Qc5 {[%clk 0:01:14]}  Be6 {[%clk 0:00:40]} 32. Qxg5 {[%clk 0:01:14]}  Rd5 {[%clk 0:00:40]} 33. Qf4+ {[%clk 0:01:14]}  Rf5 {[%clk 0:00:40]} 34. Qb4 {[%clk 0:01:14]}  Rd7 {[%clk 0:00:40]} 35. e4 {[%clk 0:01:14]}  Rh5 {[%clk 0:00:40]} 36. Qc3 {[%clk 0:01:14]}  Rh2 {[%clk 0:00:40]} 37. Qe3 {[%clk 0:01:14]}  Rxg2 {[%clk 0:00:40]} 38. a4 {[%clk 0:01:14]}  Rd6 {[%clk 0:00:40]} 39. Qc5 {[%clk 0:01:14]}  Bd7 {[%clk 0:00:40]} 40. Qh5+ {[%clk 0:01:14]}  Kf8 {[%clk 0:00:40]} 41. Qh8+ {[%clk 0:01:14]}  Ke7 {[%clk 0:00:40]} 42. Qh4+ {[%clk 0:01:14]}  Kf7 {[%clk 0:00:40]} 43. Qh7+ {[%clk 0:01:14]}  Kf6 {[%clk 0:00:40]} 44. Qh8+ {[%clk 0:01:14]}  Kf7 {[%clk 0:00:40]} 45. Qh7+ {[%clk 0:01:14]}  Ke8 {[%clk 0:00:40]} 46. Qh8+ {[%clk 0:01:14]}  Ke7 {[%clk 0:00:40]} 47. Qh4+ {[%clk 0:01:14]}  Ke8 {[%clk 0:00:40]} 1/2-1/2


[Site "http://www.Chess.com"]

[Event "FIDE World Rapid Chess Championship 2021"]
[White "Volokitin, Andrei"]
[Black "Nakamura, Hikaru"]
[WhiteFideId "14107090"]
[BlackFideId "2016192"]
[WhiteElo "2631"]
[BlackElo "2836"]
[Result "1/2-1/2"]
[Round "05"]
[TimeControl "900+10"]
[Date "2021.12.26"]
[WhiteClock "0:01:59"]
[BlackClock "0:05:45"]

1. e4 {[%clk 0:01:59]}  e5 {[%clk 0:05:45]} 2. Nf3 {[%clk 0:01:59]}  Nc6 {[%clk 0:05:45]} 3. Bb5 {[%clk 0:01:59]}  Nf6 {[%clk 0:05:45]} 4. O-O {[%clk 0:01:59]}  Nxe4 {[%clk 0:05:45]} 5. d4 {[%clk 0:01:59]}  Nd6 {[%clk 0:05:45]} 6. Bxc6 {[%clk 0:01:59]}  dxc6 {[%clk 0:05:45]} 7. dxe5 {[%clk 0:01:59]}  Nf5 {[%clk 0:05:45]} 8. Qxd8+ {[%clk 0:01:59]}  Kxd8 {[%clk 0:05:45]} 9. h3 {[%clk 0:01:59]}  Bd7 {[%clk 0:05:45]} 10. Rd1 {[%clk 0:01:59]}  Be7 {[%clk 0:05:45]} 11. g4 {[%clk 0:01:59]}  Nh4 {[%clk 0:05:45]} 12. Nxh4 {[%clk 0:01:59]}  Bxh4 {[%clk 0:05:45]} 13. Nd2 {[%clk 0:01:59]}  Be7 {[%clk 0:05:45]} 14. Nf3 {[%clk 0:01:59]}  Ke8 {[%clk 0:05:45]} 15. Nd4 {[%clk 0:01:59]}  h5 {[%clk 0:05:45]} 16. Nf5 {[%clk 0:01:59]}  Bf8 {[%clk 0:05:45]} 17. Bg5 {[%clk 0:01:59]}  hxg4 {[%clk 0:05:45]} 18. hxg4 {[%clk 0:01:59]}  Bxf5 {[%clk 0:05:45]} 19. gxf5 {[%clk 0:01:59]}  Be7 {[%clk 0:05:45]} 20. Bxe7 {[%clk 0:01:59]}  Kxe7 {[%clk 0:05:45]} 21. Rd3 {[%clk 0:01:59]}  Rh5 {[%clk 0:05:45]} 22. Rad1 {[%clk 0:01:59]}  Rg5+ {[%clk 0:05:45]} 23. Kf1 {[%clk 0:01:59]}  Rxf5 {[%clk 0:05:45]} 24. Rd7+ {[%clk 0:01:59]}  Ke6 {[%clk 0:05:45]} 25. Rxc7 {[%clk 0:01:59]}  Rh8 {[%clk 0:05:45]} 26. Rd6+ {[%clk 0:01:59]}  Kxe5 {[%clk 0:05:45]} 27. Rd2 {[%clk 0:01:59]}  b6 {[%clk 0:05:45]} 28. Rxa7 {[%clk 0:01:59]}  Rh1+ {[%clk 0:05:45]} 29. Kg2 {[%clk 0:01:59]}  Rb1 {[%clk 0:05:45]} 30. b3 {[%clk 0:01:59]}  Ke6 {[%clk 0:05:45]} 31. Rc7 {[%clk 0:01:59]}  Rg5+ {[%clk 0:05:45]} 32. Kf3 {[%clk 0:01:59]}  Rf5+ {[%clk 0:05:45]} 33. Ke4 {[%clk 0:01:59]} 1/2-1/2


[Site "http://www.Chess.com"]